bitfinex-derivatives/quotes_ETHF0:USTF0_20241004
["timestamp","ask_amount","ask_price","bid_price","bid_amount"]
[1728023089246,0.4068,2387.0,2386.8,3.2078]
[1728023089551,4.1896,2386.9,2386.4,5.3645149]
[1728023089851,3.6146,2387.0,2386.8,0.41899]
[1728023090047,3.6146,2387.0,2386.4,7.2258]
[1728023090241,3.6146,2387.0,2386.7,0.419]
[1728023090443,3.6146,2387.0,2386.4,3.2078]
[1728023090645,7.95356,2387.0,2386.4,3.62685]
[1728023091247,7.5346,2387.0,2386.4,3.2078]
[1728023091449,4.33899,2386.8,2386.4,3.2078]
[1728023091648,3.2078,2386.7,2386.3,0.41907]
[1728023092551,4.33899,2386.8,2386.3,0.41907]
[1728023092847,0.41903,2386.6,2386.1,3.7249]
[1728023093048,3.6283,2386.7,2386.2,0.41909]
[1728023093268,3.6283,2386.7,2386.1,3.2078]
[1728023093451,3.6283,2386.7,2386.3,0.41906]
[1728023093852,3.6283,2386.7,2386.1,3.2078]
[1728023094057,4.04731,2386.7,2386.2,0.41908]
[1728023094250,3.6283,2386.7,2386.3,0.41907]
[1728023094650,4.04731,2386.7,2386.3,0.41907]
[1728023094955,3.6283,2386.7,2386.1,3.2078]
[1728023095156,0.41903,2386.6,2386.2,0.41909]
[1728023097147,3.6283,2386.7,2386.1,3.2078]
[1728023097347,0.41902,2386.6,2386.2,0.41908]
[1728023097548,3.92,2386.6,2385.8,3.3058]
[1728023097748,4.33903,2386.6,2386.2,0.41908]
[1728023097949,3.2078,2386.7,2386.4,0.41906]
[1728023098551,3.62681,2386.7,2386.3,0.41906]
[1728023098760,3.2078,2386.7,2386.3,0.41906]
[1728023099059,0.41903,2386.6,2386.3,0.41906]
[1728023099248,3.2078,2386.7,2386.1,3.2078]
[1728023099451,0.41904,2386.5,2386.1,3.2078]
[1728023099650,0.81476,2386.4,2386.1,3.6269]
[1728023099954,0.3957,2386.4,2386.2,0.41909]
[1728023100153,0.3957,2386.4,2386.1,3.2078]
[1728023100452,0.8078,2386.4,2386.2,0.41908]
[1728023101260,0.41908,2386.3,2386.1,3.2078]
[1728023101456,4.7278,2386.4,2386.2,0.41909]
[1728023101652,4.7278,2386.4,2386.1,3.6269]
[1728023101857,5.14687,2386.4,2386.1,3.6269]
[1728023102049,4.7278,2386.4,2386.1,3.6269]
[1728023102249,3.92,2386.2,2385.7,0.098]
[1728023102457,3.6035,2386.4,2386.3,0.41907]
[1728023102658,0.41908,2386.3,2386.1,0.4191]
[1728023103057,7.5235,2386.4,2386.0,3.2078]
[1728023103255,7.5235,2386.4,2386.2,0.41908]
[1728023103454,7.94257,2386.4,2386.1,0.4191]
[1728023103859,7.5235,2386.4,2386.0,3.2078]
[1728023104164,4.02257,2386.4,2386.2,0.41909]
[1728023104354,3.6035,2386.4,2386.2,0.41909]
[1728023104955,4.02256,2386.4,2386.2,0.41909]
[1728023105964,4.02256,2386.4,2386.0,3.2078]
[1728023106155,3.6035,2386.4,2386.1,0.41911]
[1728023106355,3.6035,2386.4,2386.2,0.41908]
[1728023106762,3.2078,2386.4,2386.3,0.41907]
[1728023106953,4.121,2386.8,2386.3,3.2078]
[1728023107159,4.121,2386.8,2386.4,0.7988]
[1728023107360,0.7767,2387.0,2386.6,3.2078]
[1728023107361,0.3907,2387.0,2386.6,3.2078]
[1728023107759,0.3907,2387.0,2386.7,0.419]
[1728023108860,0.3907,2387.0,2386.6,3.62682]
[1728023109056,0.3907,2387.0,2386.6,3.2078]
[1728023109265,0.3907,2387.0,2386.7,0.419]
[1728023109863,0.3907,2387.0,2386.6,3.2078]
[1728023110060,3.2078,2387.2,2386.6,7.1278]
[1728023110259,3.2078,2387.2,2387.1,0.41893]
[1728023110467,0.386,2387.4,2387.2,0.41891]
[1728023110966,0.4136,2387.6,2387.0,0.4078]
[1728023111165,0.4136,2387.6,2387.1,0.41892]
[1728023111670,0.83245,2387.6,2387.1,0.41892]
[1728023111861,0.4136,2387.6,2387.1,0.41893]
[1728023112055,0.4136,2387.6,2387.2,0.41891]
[1728023112461,0.4136,2387.6,2387.3,0.41889]
[1728023112667,0.4136,2387.6,2387.4,0.41887]
[1728023113062,0.4121,2387.8,2387.6,0.41884]
[1728023113264,0.3916,2388.0,2387.6,0.41884]
[1728023113465,0.3916,2388.0,2387.2,7.1278]
[1728023113466,0.81038,2388.0,2387.5,0.41886]
[1728023113867,0.3916,2388.0,2387.8,0.4188]
[1728023114165,0.3916,2388.0,2387.9,0.41879]
[1728023114364,3.6074,2388.4,2387.8,3.2078]
[1728023114561,0.3916,2388.3,2387.9,0.41879]
[1728023115264,3.2078,2388.7,2388.4,0.4187]
[1728023115465,3.2078,2388.7,2388.3,0.41871]
[1728023115664,3.2078,2388.7,2388.1,4.8447]
[1728023115862,3.2078,2388.7,2388.2,4.3095]
[1728023115863,3.62646,2388.7,2388.2,4.3095]
[1728023116165,3.62646,2388.7,2388.1,3.6287]
[1728023116166,3.2078,2388.7,2388.1,3.6287]
[1728023116371,3.2078,2388.7,2388.2,4.3095]
[1728023116565,3.2078,2388.7,2388.1,3.6287]
[1728023116763,3.62652,2388.4,2387.8,3.92]
[1728023116964,0.41873,2388.3,2387.8,3.92]
[1728023117266,0.3904,2388.6,2388.0,4.33877]
[1728023117470,0.3904,2388.6,2388.0,3.92]
[1728023117471,0.41872,2388.4,2388.0,3.92]
[1728023117967,0.8164,2388.5,2388.0,3.92]
[1728023118159,0.3977,2388.5,2388.0,4.33877]
[1728023118565,3.2078,2388.7,2388.3,0.41872]
[1728023118866,3.2078,2388.7,2388.0,7.1278]
[1728023119170,3.2078,2388.7,2388.2,0.41873]
[1728023119366,3.2078,2388.7,2388.0,7.1278]
[1728023119670,0.4056,2388.6,2388.2,0.41873]
[1728023119867,0.4056,2388.6,2388.1,0.41875]
[1728023120470,0.4056,2388.6,2388.0,7.1278]
[1728023120677,0.4056,2388.6,2388.0,7.54657]
[1728023120678,0.41869,2388.5,2388.0,7.54657]
[1728023120979,0.4056,2388.6,2388.1,0.41876]
[1728023121270,0.4187,2388.5,2388.0,3.62657]
[1728023121964,4.7128,2388.6,2388.1,0.41876]
[1728023122273,0.7928,2388.6,2388.4,0.4187]
[1728023122470,0.7928,2388.6,2388.0,7.1278]
[1728023122768,0.7928,2388.6,2388.2,0.41873]
[1728023122968,1.21148,2388.6,2388.2,0.41873]
[1728023123364,0.4187,2388.5,2388.0,3.62657]
[1728023123572,5.13148,2388.6,2388.0,3.2078]
[1728023123772,5.13148,2388.6,2388.2,0.41874]
[1728023124573,5.75949,2388.6,2388.0,3.2078]
[1728023124765,0.41873,2388.3,2387.9,0.41879]
[1728023125079,0.3993,2388.2,2387.9,0.41879]
[1728023125472,0.3993,2388.2,2387.6,3.2078]
[1728023125671,0.3993,2388.2,2388.0,0.41878]
[1728023125868,0.3993,2388.2,2388.1,0.41876]
[1728023127273,0.3993,2388.2,2388.0,0.41877]
[1728023127474,0.3993,2388.2,2387.9,0.41879]
[1728023127681,0.3993,2388.2,2387.6,3.2078]
[1728023127977,0.4127,2388.1,2387.6,3.2078]
[1728023128283,0.41878,2388.0,2387.6,3.2078]
[1728023128582,0.83146,2388.1,2387.7,0.41883]
[1728023128777,0.83146,2388.1,2387.6,3.2078]
[1728023128983,0.83147,2388.1,2387.6,3.62664]
[1728023129172,0.41878,2388.0,2387.6,0.41884]
[1728023129478,0.83146,2388.1,2387.7,0.41882]
[1728023129680,0.41878,2388.0,2387.5,1.21195]
[1728023129878,0.83148,2388.1,2387.6,0.41884]
[1728023130072,0.4127,2388.1,2387.6,0.41884]
[1728023130281,0.4127,2388.1,2387.5,0.7931]
[1728023130474,0.41878,2388.0,2387.6,0.41884]
[1728023130677,0.4127,2388.1,2387.5,0.7931]
[1728023130876,0.4127,2388.1,2387.8,0.4188]
[1728023131076,0.4127,2388.1,2387.5,0.7931]
[1728023131380,0.41878,2388.0,2387.6,0.41884]
[1728023131576,0.4127,2388.1,2387.3,8.7561]
[1728023131775,0.41879,2387.9,2387.5,0.41886]
[1728023131982,0.41879,2388.0,2387.3,8.7561]
[1728023132179,0.41879,2388.0,2387.5,0.41885]
[1728023132679,3.2078,2387.9,2387.2,0.41891]
[1728023132884,3.2078,2387.9,2387.2,0.4189]
[1728023132885,0.41885,2387.6,2387.2,0.4189]
[1728023133071,3.2078,2387.9,2387.0,4.0885]
[1728023133072,0.8345,2387.5,2387.4,0.41888]
[1728023133470,0.8345,2387.5,2387.3,0.41889]
[1728023133977,0.8345,2387.5,2387.0,3.9905]
[1728023134175,0.8345,2387.5,2387.3,0.41889]
[1728023134381,0.4134,2387.5,2387.4,0.41888]
[1728023134573,3.6312,2387.9,2387.4,4.1888]
[1728023134771,0.4263,2387.8,2387.6,0.41885]
[1728023135169,0.4263,2387.8,2387.5,0.41886]
[1728023135377,0.4263,2387.8,2387.7,0.41883]
[1728023135578,0.4178,2388.1,2387.6,3.92]
[1728023135579,0.4263,2388.1,2387.6,3.92]
[1728023135783,0.41879,2388.0,2387.5,1.23216]
[1728023136371,0.4263,2388.1,2387.5,0.8133]
[1728023136585,0.41883,2387.8,2387.3,3.62669]
[1728023136774,0.41886,2387.6,2387.3,3.2078]
[1728023136972,0.83767,2387.5,2387.3,3.2078]
[1728023137179,0.4188,2387.5,2387.3,3.2078]
[1728023137575,0.83766,2387.5,2387.3,3.2078]
[1728023137776,0.4188,2387.5,2387.3,3.2078]
[1728023139273,0.41891,2387.3,2387.0,0.41895]
[1728023139583,0.4189,2387.3,2387.0,0.41895]
[1728023139784,3.2078,2387.3,2386.6,4.7385]
[1728023140081,0.41898,2386.9,2386.6,4.33901]
[1728023140281,0.4006,2387.2,2386.5,0.41903]
[1728023140282,0.41899,2386.8,2386.5,0.41903]
[1728023140488,0.81369,2386.8,2386.5,0.41903]
[1728023140790,0.4006,2386.7,2386.5,0.41903]
[1728023141181,0.4006,2386.7,2386.6,0.41902]
[1728023141479,0.4006,2386.7,2386.5,0.41903]
[1728023142087,0.4006,2386.7,2386.2,0.8353]
[1728023142285,0.81961,2386.7,2386.3,0.41907]
[1728023142480,0.4006,2386.7,2386.4,0.41904]
[1728023142786,3.62683,2386.6,2386.2,0.41908]
[1728023143085,3.62683,2386.6,2386.1,3.2078]
[1728023143288,3.62683,2386.6,2386.2,0.41909]
[1728023143591,7.1278,2386.6,2386.1,3.2078]
[1728023143782,7.1278,2386.3,2385.8,0.098]
[1728023143976,0.8274,2386.2,2385.6,3.2078]
[1728023144184,0.41913,2386.0,2385.6,3.62699]
[1728023144376,0.8274,2386.2,2385.8,0.41916]
[1728023144377,1.2465,2386.2,2385.8,0.41916]
[1728023144896,0.8274,2386.2,2386.0,0.41912]
[1728023145885,0.8274,2386.2,2385.9,3.2078]
[1728023146690,0.8274,2386.2,2385.9,3.62693]
[1728023146992,0.4276,2386.2,2385.9,3.62694]
[1728023148178,0.4276,2386.2,2385.9,3.2078]
[1728023149078,0.8467,2386.2,2385.9,3.2078]
[1728023149290,0.4276,2386.2,2385.9,3.2078]
[1728023149591,0.4276,2386.2,2385.9,3.62694]
[1728023149980,0.4276,2386.2,2385.9,3.2078]
[1728023150184,0.4276,2386.2,2386.0,0.41911]
[1728023151278,0.4276,2386.2,2385.9,3.62693]
[1728023151880,0.4276,2386.2,2386.0,0.41911]
[1728023153487,0.4276,2386.2,2385.9,3.62694]
[1728023154485,0.4276,2386.2,2386.0,0.41912]
[1728023155590,0.4276,2386.2,2385.9,3.62694]
[1728023156497,0.4276,2386.2,2386.0,0.41912]
[1728023157095,0.4276,2386.2,2385.9,3.62693]
[1728023157982,0.4276,2386.2,2385.9,3.2078]
[1728023158189,0.4276,2386.2,2386.0,0.41911]
[1728023159294,40.8,2387.8,2386.1,8.1112]
[1728023159295,3.6314,2386.9,2386.1,8.1112]
[1728023159491,3.6314,2386.9,2386.5,0.41903]
[1728023159492,0.4204,2386.8,2386.5,0.41903]
[1728023159792,0.4204,2386.8,2386.2,3.2078]
[1728023160004,0.41901,2386.7,2386.2,0.41908]
[1728023160289,0.8394,2386.8,2386.2,0.41908]
[1728023161093,0.8394,2386.8,2386.2,3.62688]
[1728023161293,4.3404,2386.8,2386.2,3.2078]
[1728023161491,0.4204,2386.8,2386.5,0.41903]
[1728023162089,0.4204,2386.8,2386.6,0.41902]
[1728023162288,0.4204,2386.8,2386.5,0.41902]
[1728023162888,0.4204,2386.8,2386.5,3.62682]
[1728023163089,0.4204,2386.8,2386.5,3.62683]
[1728023164189,0.4204,2386.8,2386.5,3.2078]
[1728023164387,0.4204,2386.8,2386.7,0.419]
[1728023165296,0.4204,2386.8,2386.5,3.62683]
[1728023165986,4.7594,2386.8,2386.4,0.41905]
[1728023166191,4.3404,2386.8,2386.1,4.4243]
[1728023166392,4.7567,2386.8,2386.3,0.41907]
[1728023166602,0.41902,2386.6,2386.3,0.41907]
[1728023166898,0.41901,2386.7,2386.2,0.41909]
[1728023167090,0.41901,2386.7,2386.3,0.41906]
[1728023167287,0.41901,2386.7,2386.4,0.41905]
[1728023167699,4.60941,2386.7,2386.4,0.41905]
[1728023167900,0.41902,2386.6,2386.4,0.41906]
[1728023168598,0.4227,2386.5,2386.1,3.2078]
[1728023168794,0.4227,2386.5,2386.2,0.41909]
[1728023168795,0.84175,2386.5,2386.2,0.41909]
[1728023169192,0.4227,2386.5,2386.1,3.2078]
[1728023169396,0.4204,2386.8,2386.2,3.92]
[1728023169603,0.83939,2386.8,2386.5,0.41903]
[1728023169903,0.4227,2386.7,2386.5,0.41903]
[1728023170694,8.95211,2386.7,2386.4,0.41905]
[1728023170907,5.14691,2386.7,2386.4,0.41905]
[1728023171202,0.8079,2386.7,2386.1,3.2078]
[1728023171504,0.4227,2386.7,2386.6,0.41902]
[1728023171800,0.4204,2386.8,2386.3,1.04767]
[1728023171998,0.4204,2386.8,2386.7,0.419]
[1728023173491,0.4204,2386.8,2386.3,0.8536]
[1728023173791,0.4204,2386.8,2386.6,0.41901]
[1728023174002,0.4204,2386.8,2386.3,0.8536]
[1728023174197,0.4204,2386.8,2386.6,0.41901]
[1728023174397,0.4204,2386.8,2386.6,0.41902]
[1728023174792,0.4204,2386.8,2386.7,0.419]
[1728023175198,0.4204,2386.8,2386.3,0.8536]
[1728023175507,0.4204,2386.8,2386.6,0.41901]
[1728023175698,0.4204,2386.8,2386.7,0.419]
[1728023177102,0.4204,2386.8,2386.6,0.41901]
[1728023177611,0.4204,2386.8,2386.3,0.8536]
[1728023177612,0.4204,2386.8,2386.7,0.419]
[1728023178099,0.4204,2386.8,2386.6,0.41902]
[1728023179303,0.4204,2386.8,2386.3,0.8536]
[1728023179512,0.4204,2386.8,2386.6,0.41901]
[1728023179711,5.02899,2386.8,2386.3,0.4262]
[1728023180003,0.83939,2386.8,2386.6,0.41902]
[1728023180505,0.83939,2386.8,2386.3,0.4262]
[1728023180506,3.92,2386.7,2386.3,0.4262]
[1728023180710,3.92,2386.7,2386.6,0.41902]
[1728023181210,8.1096,2386.7,2386.6,0.41902]
[1728023182319,0.4204,2386.8,2386.3,3.634]
[1728023182508,0.4204,2386.8,2386.7,0.419]
[1728023182810,0.4204,2386.8,2386.3,4.68167]
[1728023182811,0.4057,2387.1,2387.0,0.41895]
[1728023183012,0.8046,2387.1,2387.0,0.41895]
[1728023183209,4.9942,2387.1,2387.0,0.41895]
[1728023183825,0.8046,2387.1,2387.0,0.41895]
[1728023185726,3.2078,2387.2,2387.1,0.41893]
[1728023188226,3.2078,2387.2,2387.0,0.41894]
[1728023188423,3.2078,2387.2,2386.9,3.595]
[1728023188629,3.2078,2387.2,2387.1,0.41893]
[1728023188832,3.2078,2387.2,2387.0,0.41894]
[1728023190036,3.2078,2387.2,2386.9,3.595]
[1728023190328,3.2078,2387.2,2387.1,0.41893]
[1728023191333,3.2078,2387.2,2387.0,0.41894]
[1728023192724,3.2078,2387.2,2387.1,0.41893]
[1728023193030,3.92,2387.3,2387.1,0.41893]
[1728023196322,3.92,2387.3,2386.9,3.2078]
[1728023196725,0.3966,2387.4,2387.3,0.4189]
[1728023196940,0.3966,2387.4,2387.2,0.41891]
[1728023197229,0.3966,2387.4,2386.9,3.2078]
[1728023197433,0.81548,2387.4,2387.1,0.41892]
[1728023197735,0.81548,2387.4,2387.2,0.41891]
[1728023197736,0.3966,2387.4,2387.2,0.41891]
[1728023198940,0.3966,2387.4,2387.2,0.4189]
[1728023200027,0.3966,2387.4,2387.1,0.41892]
[1728023200028,0.81549,2387.4,2387.1,0.41892]
[1728023200233,4.33891,2387.3,2387.0,0.41894]
[1728023200429,0.41894,2387.1,2386.8,0.41897]
[1728023200634,0.41895,2387.0,2386.8,0.41897]
[1728023200835,0.4147,2386.9,2386.8,0.41897]
[1728023202141,3.92,2387.3,2386.6,3.2078]
[1728023202334,0.4147,2387.2,2387.1,0.41893]
[1728023203536,0.4147,2387.2,2387.0,0.41895]
[1728023204138,0.4147,2387.2,2386.9,0.3851]
[1728023204439,0.4147,2387.2,2387.1,0.41893]
[1728023205832,0.4147,2387.2,2387.0,0.41894]
[1728023206035,0.4147,2387.2,2386.9,0.3851]
[1728023206340,0.4147,2387.2,2387.1,0.41893]
[1728023207242,0.83362,2387.2,2387.0,0.41895]
[1728023207442,0.4147,2387.2,2387.0,0.41895]
[1728023207636,1.81,2387.1,2387.0,0.41895]
[1728023210545,6.41855,2387.1,2386.8,0.41898]
[1728023210841,1.81,2387.1,2387.0,0.41895]
[1728023211045,0.4147,2387.2,2387.1,0.41893]
[1728023211440,0.4147,2387.2,2386.6,5.08063212]
[1728023211736,0.4147,2387.2,2386.9,0.41896]
[1728023211737,1.81,2387.0,2386.9,0.41896]
[1728023212541,2.2009,2387.0,2386.9,0.41896]
[1728023214246,2.2009,2387.0,2386.6,6.2191]
[1728023214544,2.2009,2387.0,2386.7,0.41899]
[1728023215632,2.2009,2387.0,2386.6,6.63811]
[1728023216036,2.2009,2387.0,2386.7,0.419]
[1728023216437,1.81,2387.0,2386.7,0.41899]
[1728023216636,1.81,2387.1,2386.8,0.41899]
[1728023217041,1.81,2387.1,2386.6,6.2191]
[1728023217241,1.81,2387.1,2386.9,0.41897]
[1728023217944,0.4147,2387.2,2386.8,1.81]
[1728023218139,0.4147,2387.2,2387.1,0.41893]
[1728023218551,0.4147,2387.2,2386.8,1.81]
[1728023218744,0.4147,2387.2,2387.1,0.41893]
[1728023220349,0.4147,2387.2,2386.8,1.81]
[1728023220550,0.4147,2387.2,2387.0,0.41894]
[1728023220952,0.4147,2387.2,2387.1,0.41893]
[1728023229453,2.2337,2387.3,2387.0,4.71043212]
[1728023229454,0.4237,2387.3,2387.0,4.71043212]
[1728023229651,4.121,2387.6,2387.2,3.45434818]
[1728023229845,4.121,2387.6,2387.5,0.41886]
[1728023230156,4.121,2387.6,2387.5,3.62666]
[1728023230549,2.6217,2387.8,2387.6,0.41883]
[1728023230747,2.6217,2387.8,2387.7,0.41883]
[1728023230943,2.6217,2387.8,2387.5,3.2078]
[1728023231458,2.6217,2387.8,2387.7,0.41883]
[1728023231955,2.6217,2387.8,2387.5,3.2078]
[1728023232152,1.81,2387.6,2387.5,3.62666]
[1728023232347,1.81,2387.6,2387.5,3.2078]
[1728023232853,1.81,2387.6,2387.3,0.41889]
[1728023233057,1.81,2387.5,2387.3,0.41889]
[1728023233459,0.3988,2387.4,2387.2,0.4189]
[1728023233658,0.4188,2387.3,2387.2,0.4189]
[1728023234352,3.2078,2387.8,2387.2,4.1888]
[1728023234551,0.3958,2387.7,2387.6,0.41885]
[1728023234749,2.2058,2387.7,2387.4,0.41887]
[1728023236054,1.81,2387.5,2387.1,5.09809793]
[1728023236460,1.81,2387.5,2387.3,0.41889]
[1728023237163,1.81,2387.5,2387.3,0.4189]
[1728023237352,0.4274,2387.4,2387.2,0.41891]
[1728023237753,2.2374,2387.4,2387.1,3.2078]
[1728023237959,3.2078,2387.2,2386.9,1.09319793]
[1728023238158,1.81,2387.0,2386.7,0.41899]
[1728023238457,0.777,2386.9,2386.8,0.41898]
[1728023239364,0.777,2386.9,2386.7,0.419]
[1728023240567,0.3882,2386.9,2386.7,0.419]
[1728023240970,0.3882,2386.9,2386.8,0.41899]
[1728023241673,0.3919,2387.4,2387.1,0.41893]
[1728023241877,0.8083,2387.3,2387.1,0.41893]
[1728023242171,0.4026,2387.3,2387.2,0.41892]
[1728023242570,3.6135,2387.5,2387.3,0.41889]
[1728023242874,4.0161,2387.5,2387.3,0.41889]
[1728023244275,3.6104,2387.5,2387.4,0.41888]
[1728023244470,0.4026,2387.5,2387.4,0.41888]
[1728023245573,0.4026,2387.5,2387.3,0.41889]
[1728023246172,0.4026,2387.5,2387.0,4.72259793]
[1728023246369,0.4026,2387.5,2387.3,0.41888]
[1728023246969,0.4026,2387.5,2387.4,0.41888]
[1728023247174,7.1278,2387.8,2387.5,0.41886]
[1728023247371,7.5485,2387.8,2387.5,0.41886]
[1728023247572,7.96732,2387.8,2387.4,0.41888]
[1728023247978,0.41883,2387.7,2387.3,0.41889]
[1728023248169,7.5485,2387.8,2387.5,0.41885]
[1728023248370,3.6285,2387.8,2387.3,3.2078]
[1728023248573,3.6285,2387.8,2387.4,0.3883]
[1728023248773,3.6285,2387.8,2387.6,0.41883]
[1728023248979,3.6285,2387.8,2387.5,0.3883]
[1728023249180,3.19636589,2388.4,2387.6,3.2078]
[1728023249369,9.07745098,2388.7,2387.6,3.2078]
[1728023249370,0.4207,2388.3,2388.2,0.41874]
[1728023249570,0.4207,2388.3,2388.2,7.54654]
[1728023249875,0.4207,2388.3,2388.2,3.62654]
[1728023251476,0.4207,2388.3,2388.2,3.2078]
[1728023251782,0.4207,2388.3,2388.1,3.92]
[1728023251783,0.4207,2388.3,2388.0,0.84657]
[1728023252974,0.4207,2388.3,2388.0,0.4278]
[1728023253179,0.4207,2388.3,2387.9,3.62659]
[1728023253580,0.4207,2388.3,2387.9,3.2078]
[1728023253773,0.4207,2388.3,2388.2,0.41874]
[1728023254383,0.4207,2388.3,2388.1,0.41874]
[1728023254789,0.4207,2388.3,2387.9,3.2078]
[1728023255084,0.83942,2388.3,2387.9,3.62659]
[1728023255484,0.4207,2388.3,2387.9,3.62659]
[1728023256885,0.4207,2388.3,2388.0,0.41877]
[1728023257084,0.4207,2388.3,2387.7,1.2171]
[1728023257286,0.83943,2388.3,2387.9,0.41879]
[1728023257888,3.92,2388.2,2387.7,0.3938]
[1728023258183,4.01627,2388.1,2387.7,0.81262]
[1728023258385,0.41882,2387.8,2387.5,3.2078]
[1728023258686,0.3992,2387.7,2387.5,3.2078]
[1728023258880,0.3866,2387.6,2387.5,3.62666]
[1728023259985,0.3866,2387.6,2387.5,3.2078]
[1728023260186,0.3866,2387.6,2387.3,0.4232]
[1728023260490,0.3866,2387.6,2387.4,0.41888]
[1728023260985,0.3866,2387.6,2387.5,0.41886]
[1728023261489,0.3866,2387.6,2387.3,0.4232]
[1728023261685,0.3866,2387.6,2387.4,0.41888]
[1728023262081,0.3866,2387.6,2387.5,0.41886]
[1728023263688,0.3866,2387.6,2387.3,0.4232]
[1728023263890,0.3866,2387.6,2387.4,0.41887]
[1728023264889,0.3866,2387.6,2387.3,0.4232]
[1728023265094,0.3866,2387.6,2387.3,0.84209]
[1728023265293,0.3866,2387.6,2387.3,0.41889]
[1728023265294,0.80546,2387.6,2387.3,0.41889]
[1728023265595,0.3866,2387.6,2387.4,0.41888]
[1728023265988,0.3866,2387.6,2387.1,3.9816]
[1728023266291,0.41887,2387.5,2387.2,0.41891]
[1728023266487,0.4189,2387.4,2387.1,4.01423]
[1728023266695,0.41886,2387.5,2387.2,0.41892]
[1728023266895,7.5144,2387.6,2386.9,0.8151]
[1728023267197,0.41888,2387.5,2387.3,0.4189]
[1728023267587,4.1888,2387.5,2387.0,3.2078]
[1728023267787,3.5944,2387.6,2387.0,3.2078]
[1728023267998,3.5944,2387.6,2387.0,7.1278]
[1728023268295,3.5944,2387.6,2387.5,0.41886]
[1728023268499,0.3866,2387.6,2387.5,0.41886]
[1728023268795,0.3866,2387.6,2387.3,3.2078]
[1728023268991,0.3866,2387.6,2387.4,0.41887]
[1728023269388,0.3866,2387.6,2387.5,0.41886]
[1728023269585,0.3992,2387.7,2387.5,0.41885]
[1728023269791,0.3992,2387.7,2387.6,0.41885]
[1728023270288,4.5872,2387.7,2387.6,0.41885]
[1728023270492,4.5872,2387.7,2387.4,0.3886]
[1728023270691,0.3992,2387.7,2387.6,0.41885]
[1728023271201,5.00603,2387.7,2387.4,0.80747]
[1728023271389,0.81803,2387.7,2387.4,0.80747]
[1728023271790,0.41886,2387.6,2387.3,3.62669]
[1728023271987,0.4078,2387.5,2387.3,3.62669]
[1728023272202,0.82666,2387.5,2387.3,3.62669]
[1728023272393,0.4078,2387.5,2387.3,3.62669]
[1728023272596,0.4078,2387.5,2387.4,0.41888]
[1728023272795,0.81803,2387.7,2387.4,0.41888]
[1728023273394,0.41885,2387.6,2387.4,0.41888]
[1728023274201,0.3992,2387.7,2387.3,3.2078]
[1728023274395,0.41885,2387.6,2387.4,0.41888]
[1728023274596,0.41887,2387.5,2387.3,3.62669]
[1728023275904,0.41888,2387.5,2387.2,0.41891]
[1728023276202,0.41889,2387.4,2387.2,0.41891]
[1728023276397,0.82731,2387.3,2387.0,0.41894]
[1728023276706,1.61671,2387.3,2387.1,0.41892]
[1728023276900,0.41892,2387.2,2387.0,0.41894]
[1728023277098,1.1978,2387.3,2386.9,3.6034]
[1728023277299,0.7986,2387.3,2387.2,0.41892]
[1728023277499,5.40631,2387.3,2387.1,0.41893]
[1728023277698,1.21751,2387.3,2387.1,0.41893]
[1728023278598,0.7986,2387.3,2386.9,3.6034]
[1728023278800,1.21751,2387.3,2387.1,0.41893]
[1728023279705,0.7986,2387.3,2386.9,3.6034]
[1728023279901,0.41892,2387.2,2387.0,0.41894]
[1728023280403,0.41894,2387.1,2386.9,0.81456]
[1728023280609,0.41892,2387.2,2387.0,0.41895]
[1728023280903,3.2078,2387.6,2387.0,3.92]
[1728023281104,0.8342,2387.8,2387.1,0.403]
[1728023281303,0.8342,2387.8,2387.7,0.41883]
[1728023281807,5.0222,2387.8,2387.6,0.41883]
[1728023282006,0.8342,2387.8,2387.6,0.41883]
[1728023282207,5.0222,2387.8,2387.6,0.41883]
[1728023282402,0.8342,2387.8,2387.6,0.41883]
[1728023282602,5.0222,2387.8,2387.6,0.41883]
[1728023284906,0.4116,2387.8,2387.4,0.4266]
[1728023285109,0.41876,2388.1,2387.8,0.4188]
[1728023285506,7.1278,2388.2,2387.8,0.4188]
[1728023285711,7.54655,2388.2,2387.9,0.3872]
[1728023286006,0.41876,2388.1,2387.9,0.3872]
[1728023286205,7.1278,2388.2,2387.9,0.3872]
[1728023286206,3.2078,2388.2,2387.9,0.3872]
[1728023286408,0.8359,2388.3,2388.0,0.82037]
[1728023286615,0.4175,2388.3,2388.1,0.41875]
[1728023286809,0.83623,2388.3,2388.0,1.24267]
[1728023287714,0.41874,2388.2,2388.0,0.8239]
[1728023287907,0.4175,2388.3,2388.0,0.8239]
[1728023288102,0.83623,2388.3,2388.0,1.24268]
[1728023288808,0.4175,2388.3,2388.0,0.4016]
[1728023289014,0.41875,2388.2,2387.9,0.80598]
[1728023289212,4.33875,2388.2,2387.9,0.80598]
[1728023290206,7.1278,2388.2,2387.9,0.3872]
[1728023290411,0.41877,2388.1,2387.9,0.3872]
[1728023290714,0.81837,2388.1,2387.9,0.3872]
[1728023291316,0.81837,2388.1,2387.9,0.80599]
[1728023291516,0.81837,2388.1,2387.9,0.3872]
[1728023293218,0.3996,2388.1,2387.9,0.80599]
[1728023293411,0.3996,2388.1,2387.9,0.3872]
[1728023293613,0.3996,2388.1,2387.7,0.8189]
[1728023293614,3.92,2388.0,2387.7,1.23772]